bitfinex-derivatives/quotes_BTCF0:USTF0_20241210
["timestamp","ask_amount","ask_price","bid_price","bid_amount"]
[1733847553600,0.41320464,95540.0,95539.0,0.00157]
[1733847553902,0.41326464,95540.0,95539.0,0.00157]
[1733847554288,0.41326464,95540.0,95513.0,0.35156]
[1733847554289,0.052324,95515.0,95513.0,0.35156]
[1733847554486,0.3608,95514.0,95513.0,0.35156]
[1733847554695,0.3608,95514.0,95489.0,0.3608]
[1733847554696,9.464e-05,95513.0,95500.0,1.54795289]
[1733847554998,0.36086,95501.0,95500.0,0.04795289]
[1733847555299,0.052342,95481.0,95480.0,0.00157097]
[1733847555596,0.413202,95481.0,95480.0,0.00680766]
[1733847555800,0.413202,95481.0,95480.0,0.00523669]
[1733847556298,0.05235,95468.0,95449.0,0.3516]
[1733847556489,0.3608,95468.0,95467.0,0.00535741]
[1733847556795,0.05241,95468.0,95467.0,0.00535741]
[1733847557400,0.29057097,95460.0,95439.0,0.00157159]
[1733847557699,0.29057097,95449.0,95440.0,0.00523889]
[1733847557886,0.3608,95441.0,95418.0,0.00157199]
[1733847558194,0.413236,95419.0,95418.0,0.00157199]
[1733847558700,0.052383,95407.0,95405.0,0.13494583]
[1733847558893,0.3608,95406.0,95369.0,0.00056]
[1733847559090,0.052403,95370.0,95369.0,0.00056]
[1733847559293,6e-05,95371.0,95369.0,0.00056]
[1733847559594,0.052463,95370.0,95369.0,0.00056]
[1733847559798,0.052463,95370.0,95334.0,0.052423]
[1733847559799,6e-05,95370.0,95334.0,0.052423]
[1733847560107,0.02106607,95370.0,95368.0,0.052404]
[1733847560395,6e-05,95371.0,95370.0,0.052403]
[1733847560792,0.00017511,95371.0,95369.0,0.052404]
[1733847561192,0.00017511,95371.0,95370.0,0.3608]
[1733847561402,1.1e-07,95371.0,95370.0,0.3698]
[1733847561995,1.1e-07,95371.0,95370.0,0.3608]
[1733847562397,1.1e-07,95371.0,95370.0,0.6608]
[1733847563198,1.1e-07,95371.0,95370.0,0.6648]
[1733847563495,0.3608,95436.0,95370.0,0.67330247]
[1733847563794,0.3608,95436.0,95435.0,0.00012]
[1733847563997,0.10485422,95435.0,95419.0,1.5]
[1733847564299,0.052377,95418.0,95393.0,0.00157241]
[1733847564498,0.3608,95394.0,95393.0,0.00157241]
[1733847564691,6e-05,95394.0,95393.0,0.00157241]
[1733847564893,6e-05,95394.0,95370.0,0.02499587]
[1733847564894,0.00018046,95394.0,95370.0,0.004]
[1733847565089,0.00018046,95394.0,95371.0,1.5]
[1733847565090,0.29057097,95384.0,95371.0,1.5]
[1733847565293,0.00012046,95394.0,95383.0,0.3608]
[1733847565497,0.00012046,95394.0,95385.0,0.052395]
[1733847565691,0.00012046,95394.0,95393.0,0.00012]
[1733847565903,0.00012046,95394.0,95393.0,1.50112]
[1733847566304,0.00012046,95394.0,95393.0,0.00112]
[1733847566499,0.052405,95368.0,95350.0,0.00157271]
[1733847566698,0.29057097,95360.0,95346.0,0.31023126]
[1733847566998,0.052413,95353.0,95344.0,0.000125]
[1733847567203,0.052416,95348.0,95344.0,0.000125]
[1733847567400,6e-05,95345.0,95344.0,0.000125]
[1733847567605,0.413277,95345.0,95344.0,0.000125]
[1733847568104,0.052433,95316.0,95315.0,0.00157368]
[1733847568307,0.413233,95316.0,95315.0,0.00157368]
[1733847568504,0.36086,95316.0,95315.0,0.00157368]
[1733847569207,0.00016394,95316.0,95315.0,0.00157368]
[1733847569390,0.00016394,95316.0,95315.0,0.05400768]
[1733847569803,0.33696668,95327.0,95309.0,0.31023223]
[1733847570006,0.3608,95357.0,95326.0,0.3608]
[1733847570196,0.3817259,95357.0,95335.0,0.3608]
[1733847570405,0.3608,95377.0,95375.0,0.0524]
[1733847570597,0.3608,95377.0,95353.0,0.3608]
[1733847570799,0.29057097,95370.0,95360.0,0.052409]
[1733847571000,0.29057097,95370.0,95353.0,0.3608]
[1733847571001,0.00010341,95376.0,95374.0,0.052401]
[1733847571404,4.1e-07,95376.0,95375.0,0.3608]
[1733847571596,0.00524092,95403.0,95399.0,0.052387]
[1733847571796,0.00524092,95403.0,95390.0,0.052392]
[1733847572118,0.00524092,95403.0,95402.0,0.00012]
[1733847572304,0.00524092,95403.0,95402.0,0.052506]
[1733847572503,0.0052996,95403.0,95402.0,0.052506]
[1733847572704,0.0052996,95403.0,95402.0,0.00012]
[1733847572705,0.0576846,95403.0,95402.0,0.00012]
[1733847573007,0.052388,95398.0,95375.0,0.30877855]
[1733847573196,0.413188,95398.0,95375.0,0.30877855]
[1733847573395,0.413188,95398.0,95366.0,0.35224]
[1733847573396,0.3608,95398.0,95391.0,0.052392]
[1733847573603,0.3608,95398.0,95377.0,0.052399]
[1733847573604,0.3608,95396.0,95377.0,0.052399]
[1733847573809,0.3608,95396.0,95395.0,0.05239]
[1733847574611,0.0092996,95403.0,95402.0,0.001]
[1733847574802,0.0092996,95403.0,95402.0,0.053386]
[1733847575006,0.052351,95466.0,95402.0,0.053386]
[1733847575007,0.3608,95444.0,95402.0,0.00112]
[1733847575313,0.052381,95412.0,95403.0,0.052385]
[1733847575508,0.052381,95411.0,95403.0,0.052385]
[1733847575698,0.052382,95409.0,95395.0,0.052389]
[1733847575903,0.29057097,95410.0,95408.0,0.052382]
[1733847576710,0.3608,95419.0,95415.0,0.052378]
[1733847577211,0.3108,95419.0,95417.0,0.052377]
[1733847577410,0.3108,95419.0,95413.0,0.35224]
[1733847577411,0.3608,95438.0,95418.0,0.3608]
[1733847577615,0.3608,95438.0,95426.0,0.3608]
[1733847578209,0.3608,95459.0,95437.0,0.3608]
[1733847578515,0.3608,95459.0,95458.0,0.00012]
[1733847578810,0.052354,95460.0,95458.0,0.00012]
[1733847579013,0.413155,95459.0,95450.0,0.052359]
[1733847579199,0.3608,95458.0,95450.0,0.052359]
[1733847579403,6e-05,95451.0,95450.0,0.052359]
[1733847579907,0.00844,95451.0,95450.0,0.052359]
[1733847580103,0.3608,95479.0,95450.0,0.413159]
[1733847580307,0.3608,95479.0,95456.0,0.052356]
[1733847580308,0.65137097,95470.0,95456.0,0.052356]
[1733847580514,0.078529,95469.0,95468.0,0.00012]
[1733847581018,0.02618,95469.0,95468.0,0.00012]
[1733847582004,0.00837,95470.0,95460.0,0.3608]
[1733847582314,0.00837,95470.0,95469.0,0.00012]
[1733847582908,0.3608,95479.0,95475.0,0.052345]
[1733847583309,0.3608,95476.0,95440.0,0.3608]
[1733847583616,0.052365,95440.0,95427.0,0.052372]
[1733847583810,0.34293597,95440.0,95430.0,0.05237]
[1733847584010,6e-05,95428.0,95425.0,0.3608]
[1733847584406,6e-05,95427.0,95426.0,0.05394487]
[1733847584709,0.3608,95466.0,95426.0,0.00157187]
[1733847584914,0.34291997,95470.0,95454.0,0.36078911]
[1733847585111,0.36144,95475.0,95468.0,0.052349]
[1733847585308,0.3608,95475.0,95465.0,0.00012]
[1733847585513,0.052349,95470.0,95465.0,0.00012]
[1733847585711,6e-05,95466.0,95465.0,0.00012]
[1733847586808,0.413211,95466.0,95465.0,0.00012]
[1733847587126,0.76560768,95466.0,95436.0,0.3608]
[1733847587319,0.3608,95445.0,95439.0,0.052365]
[1733847587820,0.3608,95445.0,95441.0,0.052364]
[1733847588019,0.3608,95445.0,95429.0,0.36079811]
[1733847588219,0.05237,95430.0,95429.0,0.36079811]
[1733847588519,0.052372,95428.0,95420.0,0.052376]
[1733847588723,0.3608,95427.0,95420.0,0.052376]
[1733847588908,0.36086,95427.0,95421.0,0.052375]
[1733847589410,0.36086,95427.0,95426.0,0.00157187]
[1733847591109,0.36086,95427.0,95418.0,0.00012]
[1733847591313,0.3608,95437.0,95418.0,0.00012]
[1733847591314,0.29057097,95430.0,95418.0,0.00012]
[1733847591517,0.3608,95437.0,95418.0,0.00012]
[1733847591717,0.29057097,95440.0,95429.0,0.00012]
[1733847591924,0.052376,95419.0,95418.0,0.00012]
[1733847592422,0.052436,95419.0,95418.0,0.00012]
[1733847592811,0.3608,95434.0,95421.0,0.052375]
[1733847593009,0.3608,95434.0,95418.0,0.00012]
[1733847593010,0.3608,95424.0,95418.0,0.00012]
[1733847593215,0.3608,95424.0,95423.0,0.052374]
[1733847593409,0.3608,95424.0,95418.0,0.00012]
[1733847593607,0.3608,95424.0,95422.0,0.052374]
[1733847593811,0.3108,95424.0,95422.0,0.052374]
[1733847594020,0.2608,95424.0,95422.0,0.052374]
[1733847594222,0.3608,95433.0,95422.0,0.052374]
[1733847594425,0.29057097,95440.0,95419.0,0.3608]
[1733847594716,0.3608,95443.0,95419.0,0.3608]
[1733847594919,0.29057097,95430.0,95419.0,0.3608]
[1733847595117,0.052369,95432.0,95428.0,0.052371]
[1733847595714,0.052367,95437.0,95421.0,0.052375]
[1733847595919,0.3608,95476.0,95436.0,0.3608]
[1733847596225,0.3608,95476.0,95465.0,0.052351]
[1733847596418,0.3608,95468.0,95458.0,0.052354]
[1733847596728,0.3608,95468.0,95450.0,0.3608]
[1733847596729,0.052353,95462.0,95460.0,0.052354]
[1733847597219,0.65137097,95470.0,95449.0,0.00879645]
[1733847597521,0.052354,95461.0,95454.0,0.052357]
[1733847597721,0.052354,95460.0,95454.0,0.052357]
[1733847598333,0.052355,95459.0,95454.0,0.052357]
[1733847598513,0.052355,95458.0,95454.0,0.052357]
[1733847598821,0.052355,95458.0,95456.0,0.052356]
[1733847599024,0.052366,95438.0,95436.0,0.00012]
[1733847599218,0.7216,95437.0,95436.0,0.00012]
[1733847599915,0.72166,95437.0,95436.0,0.00012]
[1733847600111,0.72166,95437.0,95419.0,0.0017018]
[1733847600311,0.72166,95437.0,95406.0,0.0015721]
[1733847600312,0.052376,95419.0,95406.0,0.0015721]
[1733847600717,0.052376,95419.0,95417.0,0.052377]
[1733847601120,6e-05,95419.0,95418.0,0.052497]
[1733847601313,0.3608,95421.0,95418.0,0.00012]
[1733847601520,0.3608,95434.0,95433.0,0.052369]
[1733847601921,0.05236,95449.0,95428.0,0.3608]
[1733847602135,0.3608,95442.0,95439.0,0.052365]
[1733847602320,0.3608,95442.0,95431.0,0.35208]
[1733847602519,0.3608,95432.0,95420.0,0.00012]
[1733847602721,0.413175,95421.0,95420.0,0.00012]
[1733847602937,0.413175,95421.0,95404.0,0.3041336]
[1733847602938,0.052377,95417.0,95404.0,0.3041336]
[1733847603130,0.052377,95417.0,95386.0,0.00144]
[1733847603131,0.052383,95407.0,95386.0,0.00144]
[1733847603330,0.773993,95388.0,95386.0,0.00144]
[1733847603631,0.10479,95385.0,95364.0,0.052407]
[1733847603824,0.3608,95365.0,95364.0,0.052407]
[1733847604133,0.36094035,95365.0,95364.0,0.052407]
[1733847604333,0.66094035,95365.0,95361.0,0.00157289]
[1733847604523,0.29057097,95341.0,95321.0,0.3608]
[1733847604727,0.3608,95331.0,95327.0,1.5]
[1733847605025,6e-05,95327.0,95307.0,0.00911919]
[1733847605217,6e-05,95327.0,95300.0,0.1]
[1733847605218,0.05258949,95327.0,95309.0,0.052437]
[1733847605631,0.00016249,95327.0,95326.0,0.005]
[1733847605830,0.35136359,95327.0,95326.0,0.005]
[1733847606029,0.00839,95330.0,95329.0,0.052426]
[1733847606226,0.00839,95330.0,95317.0,0.052432]
[1733847606528,6e-05,95318.0,95317.0,0.052432]
[1733847606720,0.3608,95341.0,95329.0,0.052426]
[1733847606922,0.29057097,95350.0,95327.0,0.3608]
[1733847606923,0.65137097,95350.0,95327.0,0.3608]
[1733847607130,0.3608,95342.0,95340.0,0.05242]
[1733847607335,0.00010322,95341.0,95340.0,0.05242]
[1733847607627,0.70378597,95350.0,95340.0,0.05242]
[1733847607628,0.3608,95350.0,95340.0,0.05242]
[1733847607830,0.3608,95350.0,95349.0,0.052415]
[1733847608031,0.413214,95350.0,95349.0,0.00012]
[1733847608426,0.00839,95351.0,95349.0,0.00012]
[1733847608627,0.00839,95351.0,95350.0,0.052414]
[1733847608830,0.00839,95351.0,95350.0,0.052534]
[1733847609025,0.3608,95362.0,95361.0,0.052408]
[1733847609528,0.3608,95362.0,95361.0,0.052528]
[1733847609529,0.3108,95362.0,95361.0,0.052528]
[1733847609723,0.53655028,95381.0,95369.0,0.052404]
[1733847609927,0.02098135,95377.0,95376.0,0.0524]
[1733847610127,0.17639028,95381.0,95380.0,0.052398]
[1733847610317,0.17575028,95381.0,95380.0,0.052398]
[1733847610519,0.17575028,95381.0,95380.0,0.052518]
[1733847610725,0.17575028,95381.0,95380.0,0.00012]
[1733847611426,0.17575028,95381.0,95380.0,0.052518]
[1733847611823,0.17775028,95381.0,95380.0,0.052518]
[1733847612424,6e-05,95387.0,95386.0,0.052395]
[1733847612721,6e-05,95387.0,95386.0,0.413315]
[1733847613433,0.3608,95435.0,95389.0,0.052392]
[1733847613622,0.3608,95435.0,95431.0,0.052369]
[1733847613819,0.3608,95435.0,95406.0,0.3608]
[1733847613820,0.3608,95435.0,95434.0,0.00012]
[1733847614017,0.29057097,95450.0,95434.0,0.00012]
[1733847614018,0.3608,95444.0,95434.0,0.00012]
[1733847614218,0.29057097,95450.0,95434.0,0.00012]
[1733847614219,0.3608,95459.0,95443.0,0.045773]
[1733847614524,0.3608,95459.0,95458.0,0.00012]
[1733847614728,0.413155,95459.0,95458.0,0.00012]
[1733847614934,0.3608,95459.0,95458.0,0.00012]
[1733847615435,0.3608,95459.0,95430.0,0.29057097]
[1733847615624,0.3608,95459.0,95457.0,0.052355]
[1733847615825,0.3608,95468.0,95466.0,0.05235]
[1733847616330,0.3608,95468.0,95467.0,0.00012]
[1733847616529,0.47025857,95523.0,95467.0,0.00012]
[1733847616530,0.052335,95495.0,95477.0,0.052344]
[1733847616733,0.39057097,95500.0,95467.0,1.50012]
[1733847616734,0.29057097,95487.0,95472.0,0.052347]
[1733847616920,0.3608,95476.0,95467.0,1.5]
[1733847617124,0.29057097,95487.0,95467.0,1.5]
[1733847617125,0.29057097,95487.0,95474.0,0.052346]
[1733847617334,0.02069307,95489.0,95467.0,1.5]
[1733847617335,0.3608,95498.0,95490.0,0.052337]
[1733847617533,0.3608,95498.0,95467.0,1.5]
[1733847617534,0.3608,95498.0,95497.0,0.052334]
[1733847618036,0.3608,95523.0,95518.0,0.052322]
[1733847618332,0.3608,95523.0,95497.0,0.3]
[1733847618333,0.29057097,95550.0,95522.0,0.36092]
[1733847618527,0.02047509,95539.0,95522.0,0.30855411]
[1733847618726,0.02047509,95539.0,95526.0,0.052318]
[1733847619033,0.02047509,95539.0,95531.0,0.052315]
[1733847619223,0.3608,95552.0,95522.0,0.30843411]
[1733847619428,0.0523,95558.0,95538.0,0.413111]
[1733847619630,0.0523,95558.0,95546.0,0.3608]
[1733847620030,0.052301,95556.0,95546.0,0.3608]
[1733847620227,0.29057097,95560.0,95546.0,0.3608]
[1733847620634,0.29057097,95560.0,95559.0,0.00012]
[1733847620635,0.34286997,95560.0,95559.0,0.00012]
[1733847620933,0.34286997,95560.0,95519.0,0.00886057]
[1733847620934,0.052315,95532.0,95507.0,0.3608]
[1733847621128,0.3608,95515.0,95493.0,0.3608]
[1733847621324,0.3608,95515.0,95500.0,0.052332]
[1733847621525,0.10464684,95531.0,95514.0,0.3608]
[1733847621729,0.004,95560.0,95547.0,0.052306]
[1733847621934,0.3608,95610.0,95559.0,0.3608]
[1733847622233,0.00064,95599.0,95590.0,0.36092]
[1733847622427,0.413081,95593.0,95590.0,0.00012]
[1733847622626,0.413081,95593.0,95575.0,0.3608]
[1733847622627,0.54515144,95591.0,95559.0,0.00156967]
[1733847622827,0.052299,95561.0,95559.0,0.00156967]
[1733847623033,6e-05,95560.0,95559.0,0.00156967]
[1733847623236,6e-05,95560.0,95541.0,0.3608]
[1733847623425,0.052301,95557.0,95541.0,0.3608]
[1733847623625,0.052304,95551.0,95541.0,0.3608]
[1733847623826,0.052305,95549.0,95541.0,0.3608]
[1733847624128,6e-05,95542.0,95541.0,0.3608]
[1733847624532,6e-05,95542.0,95531.0,0.30843411]
[1733847624735,6e-05,95542.0,95541.0,0.33464]
[1733847624930,0.29057097,95560.0,95541.0,0.33464]
[1733847625131,0.052289,95579.0,95564.0,0.052297]
[1733847625336,0.423,95597.0,95559.0,0.00012]
[1733847625337,0.3608,95566.0,95559.0,0.00012]
[1733847625528,0.052299,95561.0,95559.0,0.00012]
[1733847625731,0.34286497,95570.0,95559.0,0.00012]
[1733847625927,0.29057097,95570.0,95560.0,0.3608]
[1733847626127,0.413089,95578.0,95569.0,0.00012]
[1733847626534,0.413089,95578.0,95560.0,0.3608]
[1733847626535,0.413089,95578.0,95577.0,0.00012]
[1733847627041,0.052284,95588.0,95577.0,0.00012]
[1733847627335,0.052283,95589.0,95587.0,0.00012]
[1733847627543,0.29216097,95590.0,95573.0,0.3608]
[1733847627744,0.02084268,95588.0,95573.0,0.3608]
[1733847627947,6e-05,95574.0,95573.0,0.413092]
[1733847628536,0.00159,95590.0,95587.0,0.052284]
[1733847628731,0.00159,95590.0,95573.0,0.3608]
[1733847628732,0.05229,95577.0,95573.0,0.3608]
[1733847629039,0.36339,95590.0,95566.0,0.00875543]
[1733847629040,6e-05,95574.0,95566.0,0.00875543]
[1733847629232,0.052295,95567.0,95566.0,0.00875543]
[1733847629436,6e-05,95567.0,95566.0,0.00875543]
[1733847629639,6e-05,95567.0,95563.0,0.3608]
[1733847629938,6e-05,95564.0,95563.0,0.3608]
[1733847630539,6e-05,95564.0,95555.0,0.71264]
[1733847630836,0.009,95574.0,95562.0,0.052298]
[1733847630837,0.3608,95572.0,95562.0,0.052298]
[1733847631032,0.3608,95572.0,95555.0,0.71264]
[1733847631033,0.3608,95572.0,95566.0,0.052296]
[1733847631237,0.3608,95572.0,95571.0,0.00012]
[1733847631439,0.052292,95573.0,95571.0,0.00012]
[1733847631839,0.052287,95583.0,95576.0,0.05229]
[1733847632038,0.052287,95583.0,95578.0,0.3608]
[1733847632247,0.413087,95583.0,95582.0,0.00012]
[1733847632741,0.052297,95564.0,95563.0,0.001]
[1733847632945,0.413097,95564.0,95563.0,0.001]
[1733847633846,0.052308,95543.0,95539.0,0.052311]
[1733847634044,0.052314,95532.0,95530.0,0.00012]
[1733847634339,0.052321,95520.0,95519.0,0.00157017]
[1733847634744,6e-05,95520.0,95519.0,0.052321]
[1733847634944,0.02617,95521.0,95519.0,0.413121]
[1733847635150,0.29063097,95540.0,95524.0,0.052318]
[1733847635338,6e-05,95540.0,95520.0,0.00012]
[1733847635536,6e-05,95540.0,95519.0,0.3608]
[1733847635537,0.41317,95540.0,95539.0,0.00012]
[1733847635737,0.41317,95540.0,95539.0,1.50012]
[1733847636144,0.41317,95540.0,95539.0,1.86092]
[1733847636145,6e-05,95540.0,95539.0,1.86092]
[1733847636741,0.052294,95570.0,95542.0,0.052309]
[1733847637049,0.052296,95566.0,95552.0,0.052303]
[1733847637347,0.052296,95566.0,95559.0,0.052299]
[1733847637542,0.3608,95560.0,95539.0,1.50006311]
[1733847637742,0.41311,95540.0,95539.0,1.50006311]
[1733847637950,0.41317,95540.0,95539.0,1.50006311]
[1733847638154,0.052316,95529.0,95528.0,0.00157021]
[1733847638443,0.052316,95529.0,95486.0,0.35176]
[1733847638444,0.052325,95512.0,95486.0,0.35176]
[1733847638649,0.773925,95512.0,95511.0,3.6e-07]
[1733847638850,1.073985,95512.0,95511.0,3.6e-07]
[1733847639147,0.052332,95500.0,95499.0,4e-08]
[1733847639347,0.052339,95488.0,95487.0,1.5]
[1733847639654,0.3608,95488.0,95460.0,0.3608]
[1733847639847,0.29057097,95480.0,95460.0,0.3608]
[1733847640044,0.3608,95488.0,95460.0,0.3608]
[1733847640242,0.052349,95469.0,95460.0,0.3608]
[1733847640442,0.052349,95469.0,95465.0,0.052351]
[1733847640750,8.449e-05,95479.0,95460.0,0.3608]
[1733847640946,8.449e-05,95479.0,95474.0,0.052346]
[1733847641149,8.449e-05,95479.0,95460.0,0.3608]
[1733847641150,6e-05,95461.0,95460.0,0.3608]
[1733847641460,6e-05,95461.0,95452.0,0.00157146]
[1733847641461,0.36086,95461.0,95452.0,0.00157146]
[1733847641640,0.413158,95453.0,95452.0,0.00157146]
[1733847641838,0.413218,95453.0,95452.0,0.00157146]
[1733847642038,0.413218,95453.0,95448.0,0.00012367]
[1733847642039,0.41330424,95453.0,95448.0,0.00012367]
[1733847642247,0.05236,95449.0,95448.0,0.00012367]
[1733847642442,0.05242,95449.0,95448.0,0.00012367]
[1733847642842,0.052364,95443.0,95432.0,0.052369]
[1733847643053,0.413164,95442.0,95432.0,0.052369]
[1733847643242,6e-05,95433.0,95432.0,0.052369]
[1733847643543,0.05244424,95453.0,95448.0,0.05236]
[1733847643952,0.05244424,95453.0,95452.0,0.00012]
[1733847644143,0.05244424,95453.0,95452.0,1.50012]
[1733847644346,0.05244424,95453.0,95452.0,0.00012]
[1733847645254,8.624e-05,95453.0,95452.0,0.00012]
[1733847645643,0.052356,95456.0,95452.0,0.00012]
[1733847645847,0.052356,95456.0,95452.0,0.052478]
[1733847646148,0.052356,95456.0,95455.0,0.00012]
[1733847646544,0.00010787,95456.0,95455.0,0.00012]
[1733847646745,0.29057097,95470.0,95455.0,1.50012]
[1733847646955,0.3608,95456.0,95455.0,1.50012]
[1733847647158,0.3608,95456.0,95455.0,1.5]
[1733847647751,0.36085892,95456.0,95455.0,1.5]
[1733847648252,0.36085892,95456.0,95433.0,0.00157178]
[1733847648462,0.3608,95442.0,95437.0,0.052366]
[1733847648765,0.052363,95444.0,95438.0,0.052366]
[1733847648951,0.052363,95444.0,95438.0,1.1e-07]
[1733847649255,0.052358,95454.0,95449.0,0.052359]
[1733847649459,0.052361,95448.0,95442.0,0.052364]
[1733847649667,0.052361,95448.0,95443.0,0.052363]
[1733847649959,0.002361,95448.0,95443.0,0.052363]
[1733847650151,0.05236,95450.0,95444.0,0.052362]
[1733847650355,0.05236,95450.0,95445.0,0.052362]
[1733847650557,0.05236,95450.0,95449.0,0.00012]
[1733847650856,0.36085892,95456.0,95449.0,0.00012]
[1733847651052,5.892e-05,95456.0,95455.0,0.3608]
[1733847651251,0.052339,95487.0,95478.0,0.052344]
[1733847651546,0.3608,95497.0,95486.0,0.00012]
[1733847651752,0.052334,95496.0,95486.0,0.00012]
[1733847652059,0.14069402,95503.0,95491.0,0.3608]
[1733847652254,0.14069402,95503.0,95497.0,0.052334]
[1733847652448,0.03987649,95498.0,95497.0,0.052454]
[1733847652649,0.06993532,95503.0,95502.0,0.052331]
[1733847652848,0.14979416,95509.0,95508.0,0.052328]
[1733847653260,0.14979416,95509.0,95508.0,0.052448]
[1733847653660,0.14979416,95509.0,95508.0,0.00012]
[1733847654056,0.3608,95509.0,95508.0,0.00012]
[1733847654253,0.052338,95489.0,95482.0,0.052342]
[1733847654651,0.052338,95489.0,95468.0,0.052349]
[1733847654652,0.052398,95489.0,95468.0,0.052349]
[1733847654857,0.052398,95489.0,95475.0,0.052345]
[1733847655161,6e-05,95489.0,95466.0,0.3608]
[1733847655355,0.65137097,95476.0,95456.0,0.3608]
[1733847655558,0.052357,95455.0,95454.0,0.00157144]
[1733847655859,0.052417,95455.0,95454.0,0.00157144]
[1733847656365,0.052365,95439.0,95426.0,0.052372]
[1733847656659,0.052425,95439.0,95436.0,0.052367]
[1733847656866,0.413225,95439.0,95426.0,0.413172]
[1733847657163,0.052425,95439.0,95426.0,0.413172]
[1733847657361,0.052425,95439.0,95426.0,0.3608]
[1733847657558,0.052425,95439.0,95427.0,0.052372]
[1733847657955,6e-05,95439.0,95427.0,6.22e-06]
[1733847658256,6e-05,95428.0,95426.0,0.3608]
[1733847658562,0.052366,95438.0,95426.0,0.3608]
[1733847658754,0.052369,95433.0,95429.0,0.052371]
[1733847658956,0.02619,95432.0,95429.0,0.052371]
[1733847659155,0.02619,95432.0,95426.0,0.3608]
[1733847659356,0.052372,95427.0,95426.0,0.3608]
[1733847659560,0.052372,95427.0,95426.0,0.3618]
[1733847660454,0.052372,95427.0,95426.0,0.001]
[1733847661061,0.3608,95428.0,95402.0,0.30951319]
[1733847661366,0.413178,95417.0,95403.0,0.052385]
[1733847661571,0.413178,95417.0,95405.0,0.052384]
[1733847661572,0.05238,95413.0,95405.0,0.052384]
[1733847661770,0.052381,95412.0,95405.0,0.052384]
[1733847662065,7.705e-05,95411.0,95409.0,0.052382]
[1733847662266,0.052366,95438.0,95410.0,0.3608]
[1733847662462,0.3608,95440.0,95426.0,0.3608]
[1733847662757,0.078559,95432.0,95431.0,0.00012]
[1733847662969,0.439359,95432.0,95431.0,0.00012]
[1733847663755,0.02619,95432.0,95431.0,0.00012]
[1733847664165,0.02619,95432.0,95429.0,0.3608]
[1733847664960,0.02619,95432.0,95431.0,0.05237]
[1733847665162,0.02919,95432.0,95431.0,1.55237]
[1733847665860,0.002,95432.0,95431.0,1.55237]
[1733847666264,0.002,95432.0,95431.0,1.5]
[1733847666460,0.001,95432.0,95431.0,1.5]
[1733847666665,0.004,95432.0,95431.0,1.5]
[1733847667164,0.29057097,95460.0,95430.0,0.41317]
[1733847667165,0.3608,95470.0,95430.0,0.3608]
[1733847667370,0.052354,95461.0,95457.0,0.3608]
[1733847667561,0.00925313,95475.0,95457.0,0.3608]
[1733847667759,0.14982687,95480.0,95479.0,0.052343]
[1733847667966,0.00064,95480.0,95479.0,0.052343]
[1733847668267,0.00072,95496.0,95494.0,0.052335]
[1733847668566,0.00072,95496.0,95495.0,0.36092]
[1733847668773,0.00072,95496.0,95495.0,0.00012]
[1733847668962,0.00072,95496.0,95459.0,0.3608]
[1733847668963,0.052335,95495.0,95459.0,0.3608]
[1733847669163,0.052349,95470.0,95465.0,0.052351]
[1733847669467,0.3608,95466.0,95459.0,1.5]
[1733847669660,0.052354,95460.0,95458.0,0.35204]
[1733847669861,6e-05,95460.0,95458.0,0.35204]
[1733847670070,6e-05,95460.0,95458.0,0.404395]
[1733847670286,6e-05,95460.0,95458.0,0.29967411]
[1733847670464,0.052414,95460.0,95458.0,0.29967411]
[1733847671360,0.052414,95460.0,95439.0,0.3608]
[1733847671361,6e-05,95460.0,95439.0,0.3608]
[1733847671561,0.413156,95457.0,95445.0,0.052362]
[1733847671781,0.413216,95457.0,95446.0,0.052361]
[1733847672274,0.413216,95457.0,95433.0,0.35204]
[1733847672464,0.36086,95457.0,95436.0,0.3608]
[1733847672665,6e-05,95457.0,95455.0,0.052357]
[1733847673176,0.00013391,95457.0,95455.0,0.00010354]
[1733847673367,0.00013391,95457.0,95456.0,0.001]
[1733847673575,7.391e-05,95457.0,95456.0,0.001]
[1733847673874,0.3608,95485.0,95477.0,0.052344]
[1733847674069,0.3608,95501.0,95478.0,0.3608]
[1733847674270,0.3608,95512.0,95494.0,0.052335]
[1733847674567,0.3608,95512.0,95498.0,0.052333]
[1733847674768,0.3608,95512.0,95503.0,0.05233]
[1733847674977,0.41370055,95504.0,95503.0,0.00012]
[1733847676064,0.41370055,95504.0,95503.0,0.00112]
[1733847676379,0.05290055,95504.0,95500.0,0.052332]
[1733847676573,0.00057055,95504.0,95498.0,0.3608]
[1733847676781,0.00957055,95504.0,95503.0,0.05333]
[1733847677180,0.00957055,95504.0,95503.0,0.001]
[1733847677365,0.00957055,95504.0,95503.0,1.501]
[1733847678068,0.00957055,95504.0,95503.0,0.001]
[1733847678270,0.052337,95491.0,95481.0,0.052342]
[1733847678471,0.3608,95496.0,95478.0,0.3608]
[1733847678668,0.36086,95485.0,95467.0,0.3608]
[1733847678868,0.36086,95485.0,95465.0,0.35196]
[1733847678869,6e-05,95485.0,95484.0,0.66092]
[1733847679071,0.00057055,95504.0,95503.0,0.05233]
[1733847679282,0.3608,95519.0,95503.0,0.29959411]
[1733847679577,0.3608,95519.0,95503.0,0.35292411]
[1733847679766,0.3608,95519.0,95503.0,0.30059411]
[1733847679767,0.413126,95511.0,95503.0,0.30059411]
[1733847679969,0.413126,95511.0,95507.0,0.052328]
[1733847680176,0.3608,95511.0,95509.0,0.052327]
[1733847680380,0.052323,95516.0,95509.0,0.052327]
[1733847680679,0.02053243,95531.0,95523.0,0.052319]
[1733847680680,0.052315,95531.0,95523.0,0.052319]
[1733847680874,0.052315,95531.0,95524.0,0.052319]
[1733847681069,0.3608,95541.0,95510.0,0.3608]
[1733847681070,0.052311,95539.0,95530.0,0.00012]
[1733847681267,0.3608,95541.0,95530.0,0.00012]